Cogmind - Beta 13 @@@ ROGUE MODE // 2024.05.07 @ 22:29:51 Player: trisiak Result: Destroyed by G-34 Mercenary with Small Laser Performance ------------- Evolutions (0) 0 Regions Visited (1) 200 Robots Destroyed (4) 20 Value Destroyed (49) 49 Prototype IDs (0) 0 Alien Tech Used (0) 0 Bonus (0) 0 TOTAL SCORE: 269 Bonus ------- None Cogmind --------- Core Integrity 0/250 Matter 258/300 Energy 100/100 System Corruption 0% Temperature Cool (6) Movement Core (1350) Ox26 Location -10/Materials Parts ------- > --- POWER (1) -------- (None) > --- PROPULSION (2) --- (None) > --- UTILITY (2) ------ Huge Storage Unit > --- WEAPON (2) ------- (None) > --- INVENTORY (25) --- Aluminum Leg Aluminum Leg Improved Terrain Scanner Seismic Detector Peak State ------------ > --- POWER ------------ Light Ion Engine > --- PROPULSION ------- Aluminum Leg Aluminum Leg > --- UTILITY ---------- Small Storage Unit Improved Terrain Scanner > --- WEAPON ----------- EM Pulse Gun Assault Rifle > --- INVENTORY -------- Ion Engine Light Treads Light Treads Wheel Compact Wheel Medium Laser [Rating: 9] Favorites ----------- Power Light Ion Engine Engine Light Ion Engine Propulsion Aluminum Leg Treads Light Treads Leg Aluminum Leg Wheel Wheel Utility Small Storage Unit Device Improved Terrain Scanner Storage Small Storage Unit Weapon Assault Rifle Energy Gun EM Pulse Gun Ballistic Gun Assault Rifle Build | -11 -10 ------- Run | Yrd Mat Slots Evolved . | . . Power . | . . Propulsion . | . . Utility . | . . Weapon . | . . Parts Attached 11 | 1 10 Power 1 | . 1 Engine 1 | . 1 Core . | . . Reactor . | . . Propulsion 5 | . 5 Treads 3 | . 3 Leg . | . . Wheel 2 | . 2 Hover . | . . Flight . | . . Utility 3 | 1 2 Device 2 | 1 1 Storage 1 | . 1 Processor . | . . Hackware . | . . Protection . | . . Artifact . | . . Weapon 2 | . 2 Energy Gun 2 | . 2 Energy Cannon . | . . Ballistic Gun . | . . Ballistic Cannon . | . . Launcher . | . . Special Weapon . | . . Impact Weapon . | . . Slashing Weapon . | . . Piercing Weapon . | . . Special Melee Weapon . | . . Unidentified Prototypes . | . . Parts Lost 10 | . 10 Power 2 | . 2 Propulsion 4 | . 4 Utility 1 | . 1 Weapon 3 | . 3 Highest Loss Streak 10 | . 10 To Critical Strikes . | . . Average Slot Usage (%) 91 | . 91 Engine 13 | . 13 Treads 4 | . 4 Leg 18 | . 18 Wheel 2 | . 2 Device 13 | . 13 Storage 14 | . 14 Energy Gun 11 | . 11 Ballistic Gun 11 | . 11 Naked Turns . | . . Heaviest Build 88 | 13 88 Greatest Support 40 | 20 40 Greatest Overweight (x) 28 | . 28 Average Overweight (x) . | . . Largest Inventory Capacity 25 | 8 25 Average Capacity 12 | 8 13 Most Carried 8 | 7 8 Average Carried 6 | 6 6 Final Capacity 25 | 8 25 Final Carried 7 | 7 4 Class Distribution -------------------- 100% | Mutant Dominant Class ---------------- Mutant | -10/Materials Resources | -11 -10 ----------- Run | Yrd Mat Matter Collected 278 | 228 50 Remotely . | . . Salvage Created 184 | 93 91 Parts 10 | 6 4 Haulers Intercepted 1 | . 1 Recyclers Shooed . | . . Parts Field Recycled . | . . Retrieved Matter . | . . Parts Self-Destructed . | . . Prevented . | . . Kills | -11 -10 ------- Run | Yrd Mat Combat Hostiles Destroyed 1 | . 1 Guns 1 | . 1 Classes Destroyed 4 | 2 2 Tunneler 1 | 1 . Hauler 1 | . 1 Recycler 1 | 1 . Grunt 1 | . 1 Best Kill Streak 2 | 2 1 Combat Bots Only 1 | . 1 Max Kills in Single Turn 1 | 1 1 Gunslinging . | . . Exploded . | . . Melee . | . . Uniques/NPCs Destroyed . | . . Combat | -11 -10 -------- Run | Yrd Mat Hostile Shots Fired 123 | . 123 Missed 29 | . 29 Damage Taken 1151 | . 1151 Core 253 | . 253 Absorbed by Shields . | . . Core Remaining (%) 100 | 100 . Volleys Fired 22 | 6 16 Largest 2 | 2 2 Hottest 90 | 60 90 Shots Fired 44 | 12 32 Gun 44 | 12 32 Cannon . | . . Launcher . | . . Special . | . . Kinetic 20 | 6 14 Thermal 16 | . 16 Explosive . | . . Electromagnetic 8 | 6 2 Robot Hit Streak 8 | 4 8 Robot Miss Streak 5 | 3 5 Penetration Max . | . . Secondary Targets . | . . Shots Hit Robots 29 | 7 22 Core Hits 8 | 3 5 Critical Kills . | . . Critical Parts Destroyed . | . . Critical Strikes 2 | 1 1 Burn 1 | . 1 Corrupt 1 | 1 . Melee Attacks . | . . Impact . | . . Slashing . | . . Piercing . | . . Sneak Attacks . | . . Combat Hostiles . | . . Follow-up Attacks . | . . Damage Inflicted 377 | 91 286 Guns 377 | 91 286 Cannons . | . . Explosions . | . . Melee . | . . Ramming . | . . Kinetic 199 | 51 148 Thermal 125 | . 125 Explosive . | . . Electromagnetic 53 | 40 13 Impact . | . . Slashing . | . . Piercing . | . . Highest Corruption . | . . Average Corruption . | . . Corruption Purged . | . . Corruption Blocked . | . . Overload Shots . | . . Overflow Damage . | . . Projectiles . | . . Explosions . | . . Melee . | . . Knockbacks . | . . Impact . | . . Kinetic . | . . Secondary . | . . Self-Inflicted Damage . | . . Shots . | . . Rammed . | . . Targets Rammed . | . . Kicked . | . . Crushed . | . . Highest Temperature 248 | . 248 Average Temperature 70 | . 70 Received Heat Transfer 645 | . 645 Siege Activations . | . . Robots Corrupted . | . . Combat Hostiles . | . . Parts Fried . | . . Impact Corruptions . | . . Robots Melted . | . . Combat Hostiles . | . . Parts Melted . | . . Heat Transferred 444 | . 444 Parts Sabotaged . | . . Parts Stolen . | . . Parts Stripped . | . . Power Chain Reactions . | . . Alert | -11 -10 ------- Run | Yrd Mat Peak Influence 57 | 10 57 Initial 6 | . 6 Average 13 | 6 15 Maximum Alert Level . | . . Low Security (%) 100 | 100 100 Level 1 . | . . Level 2 . | . . Level 3 . | . . Level 4 . | . . Level 5 . | . . High Security . | . . Max Security . | . . Squads Dispatched 3 | . 3 Investigation 2 | . 2 Extermination . | . . Reinforcement 1 | . 1 Assault . | . . Garrison . | . . Intercept . | . . Searches Triggered . | . . Construction Impeded . | . . Haulers Reinforced . | . . Active Scanning Responses . | . . Cargo Convoy Interrupts . | . . Stealth | -11 -10 --------- Run | Yrd Mat Distress Signals . | . . Communications Jammed . | . . Distress Signals . | . . Times Spotted 7 | . 7 Peak Tracking Total 6 | . 6 Tactical Retreats . | . . Traps | -11 -10 ------- Run | Yrd Mat Traps Triggered 1 | . 1 Indirectly . | . . Trap Hack Attempts . | . . Triggered . | . . Disarmed . | . . Reprogrammed . | . . Reused . | . . Traps Extracted . | . . Installed . | . . Triggered . | . . Machines | -11 -10 ---------- Run | Yrd Mat Machines Disabled . | . . Max in Single Turn . | . . Machines Repaired . | . . Machines Dismantled . | . . Machines Sabotaged . | . . Overloaded Fab Kills . | . . Hacking | -11 -10 --------- Run | Yrd Mat Machines Accessed 2 | . 2 Terminals 2 | . 2 Fabricators . | . . Repair Stations . | . . Recycling Units . | . . Scanalyzers . | . . Garrison Access . | . . Total Hacks 5 | . 5 Successful 2 | . 2 Failed 3 | . 3 Catastrophic . | . . Database Lockouts . | . . Manual 4 | . 4 Terminals 5 | . 5 Fabricators . | . . Repair Stations . | . . Recycling Units . | . . Scanalyzers . | . . Garrison Access . | . . Terminal Hacks . | . . Fabricator Hacks . | . . Repair Station Hacks . | . . Recycling Unit Hacks . | . . Scanalyzer . | . . Garrison Access Hacks . | . . Unauthorized Hacks 2 | . 2 Terminals 2 | . 2 Botnet 2 | . 2 Fabricators . | . . Repair Stations . | . . Recycling Units . | . . Scanalyzers . | . . Garrison Access . | . . Data Cores Recovered . | . . Used . | . . Hacking Detections 2 | . 2 Full Trace Events 1 | . 1 Feedback Events . | . . Feedback Blocked . | . . Robot Schematics Acquired . | . . Robots Built . | . . Authchips . | . . Time . | . . Total Robot Build Rating . | . . Part Schematics Acquired . | . . Parts Built . | . . Authchips . | . . Time . | . . Total Part Build Rating . | . . Parts Repaired . | . . Time . | . . Parts Recycled . | . . Recycled Matter . | . . Retrieved Matter . | . . Retrieved Components . | . . Parts Scanalyzed . | . . Part Schematics Acquired . | . . Parts Damaged . | . . Bothacking | -11 -10 ------------ Run | Yrd Mat Used RIF Installer . | . . Robots Hacked . | . . Non-combat . | . . Combat . | . . Robot Hacks Applied . | . . Relay Couplers Released . | . . Fabnet Peak Effective % . | . . Robots Rewired . | . . Allies Hacked . | . . Hacks Repelled . | . . Allies | -11 -10 -------- Run | Yrd Mat Total Allies . | . . Largest Group . | . . Highest-Rated Group . | . . Highest-Rated Ally . | . . Total Orders . | . . Ally Attacks . | . . Total Damage . | . . Kills . | . . Allies Corrupted . | . . Allies Melted . | . . Intel | -11 -10 ------- Run | Yrd Mat Robot Analysis Total . | . . Derelict Logs Recovered . | . . Drone Launches . | . . Drone Recoveries . | . . Exploration | -11 -10 ------------- Run | Yrd Mat Turns Passed 393 | 58 335 Spaces Moved 219 | 32 187 Core 1 | . 1 Treads 7 | . 7 Legs 196 | 32 164 Wheels 15 | . 15 Hover . | . . Flight . | . . Fastest Speed 120 | 120 120 Average Speed 137 | 120 140 Slowest Speed 1450 | 120 1450 Overloaded Moves . | . . Propulsion Burnouts . | . . Robots Hopped . | . . Cave-ins Triggered . | . . Exploration Rate (%) 23 | 3 44 Regions Visited 1 Branch Regions . Pre-discovered Areas . | . . Known Exits Taken . | . . Unknown Exits Taken 1 | 1 . Scrap Searched . | . . Spaces Dug . | . . Terrain Destroyed . | . . Melee . | . . Projectile . | . . AOE . | . . Terrain Rammed . | . . Walls Destroyed . | . . Machines Disabled . | . . Actions | -11 -10 --------- Run | Yrd Mat Total 265 | 39 226 Wait 11 | . 11 Move 218 | 31 187 Hop . | . . Pick Up 2 | 1 1 Fast Attach 1 | 1 . Attach 4 | . 4 Detach . | . . Swap 6 | . 6 Drop 1 | . 1 Fire 22 | 6 16 Melee . | . . Ram . | . . Kick . | . . Crush . | . . Escape Stasis . | . . Rewire . | . . Trap . | . . Miscellaneous . | . . Route ------- -11/Scrapyard -10/Materials (discovered 1 exit: [*Min]) History --------- Turn | Location | Event 1 | -11/Scrapyard | Discovered new exit (range 1) 59 | -11/Scrapyard | Entered Materials 250 | -10/Materials | Discovered new exit (range 16) 310 | -10/Materials | Build established: Mutant 383 | -10/Materials | Core integrity fell below 50% 390 | -10/Materials | Core integrity fell below 20% 394 | -10/Materials | Destroyed by G-34 Mercenary with Small Laser Last Messages --------------- 00343_ Material Processor disabled. 00349_ G-34 Mercenary heat short circuits Ion Engine. 00355_ Com. Wheel destroyed. 00364_ K-01 Serf collects debris. 00369_ R-06 Scavenger collects Sml. Matter Pod. 00373_ K-01 Serf collects debris. 00373_ R-06 Scavenger collects Lgt. Ion Engine. 00374_ Structural Scanner destroyed. 00376_ Lgt. Treads destroyed. 00376_ K-01 Serf cleans the Machine. 00379_ Lgt. Treads destroyed. 00379_ R-06 Scavenger collects Weight Redist. System. 00380_ K-01 Serf cleans the Machine. 00383_ R-06 Scavenger collects Sml. Laser. 00384_ K-01 Serf collects debris. 00386_ Ion Engine destroyed. 00387_ K-01 Serf collects debris. 00390_ G-34 Mercenary misfires. 00390_ R-06 Scavenger collects Ion Engine. 00390_ K-01 Serf collects debris. Map ----- +----------------------------------------------------+ | ???????? ?????## # # ?"" ????????????????? | | ########+###??##"" # # """ ????????????????? | | #####"T + + """ ##?????????????? | | #####"" # # ##?????????????? | | / # # ???? ##?????????????? | | ##### # ##????????????????????? | | ## ############ ##????????????????????? | | ?# ##??######### ##????????????????????? | | ?# #???#??????## ##????????????????????? | | ?# ##### #??#??????? # ####??????????????????? | | ?# #???# #?????????? # ####??????????????????? | | ?# ##??# #?????????? # # ##??????????????????? | | ?# #???# #?#???????? + t ##??????????????????? | | ##+##### #????????"" # r# ###?????????????????? | | # =# ####??????### #####?????????????????? | | # """ # # ##?????## "##?????????????????? | | + """ # # #?????## ""##?????????????????? | | # """ + #?????## % ||##?????????????????? | | # # # ##?????## < ""##?????????????????? | | # # #####??#??## % !!##?????????????????? | | ######## ##????????## %k ""##????########?????? | | ####### #????????## "##############?????? | | #?#????#?### ########## ##?????? | | #????????### %wr ##?????? | | #?????????## !%= ##?????? | | ####### #?###?????## @ g ##?????? | | #?????#######?##!?????## " " """ ##?????? | | #????????????### ? ## """" """"" ###?????? | | #?#?????????? ## ##g """"" """""??###?????? | | #?????????? gg""""" """"" ##??????? | | #???????? ?T """ """ ##??????? | | #?????#???? ##??????? | | #???????#??? #######+### ##??????? | | #?????#??????### ### """ / ##??????? | | #??#???????????????????##! """"" ##??????? | | #????#?????????????????## """"" ##??????? | | #??????????????????????## """"" " ##??????? | | ########## ??????????## """ T ##??????? | | ?????????? ? " ##??????? | | ????????? ? # ??????? | | ???? ?? ?? # ??????? | | #??????####+## ?? # ??????? | | ##### ??????? ##?? ##### # ??????? | | ###?# """""? #???????????????? ##### # ??????? | | ?#??# """"" #???????????????? ????????????????? | | ????# """"" #??????????????????????????????????? | | ????# """"" #??????????????????????????????????? | | ##### """"" ##?????????????????????????????????? | | """"" #??????????????????????????????????? | | ##### """"" #??????????????????????????????????? | +----------------------------------------------------+ Best States ------------- Heat Dissipation 25 Energy Generation 10 Energy Capacity 250 Matter Stores 300 Matter Capacity 300 Sight Range 16 Terrain Scan Range 16 Terrain Scan Density 10 Evasion (%) 55 Recoil Reduction 2 Item Schematics ----------------- None Robot Schematics ------------------ None Fabricated ------------ Nothing Alien Tech Used ----------------- None Achievements -------------- None Challenges ------------ None Game ------ Seed RagnarokTransportThrower Manual? 0 Play Time 00:08:41 Cumulative 77.4 hours Start 2024.05.07 @ 22:24:27 End 2024.05.07 @ 22:29:51 Sessions 1 Manual Loads 0 Difficulty Rogue Special Mode None Game No. 14 Rogue 8 Adventurer 6 Explorer 0 Win Type - Total 1 Types 1/0/0/0/0/0/0/0/0 Lore% 30 Gallery% 40 Achievement% 35 Wizard Run 0 Options --------- Layout 0 ASCII 0 Keyboard 1 Movement Vi Keybinds 0 Fullscreen 1 Font 18/SmallcapsGlow Map View 64x50 Zoom Use 0% Tactical HUD 1 Map Filters NONE Filters NONE Steam 0 RUN: d8098c46-147c-4b6b-bf39-cbe5cfcd47b3